[Event "32nd NATO Chess Championship"]
[Site "Tartu, Estonia"]
[Date "2022.07.01"]
[Round "7.30"]
[White "Voroblievas, Arturas"]
[Black "Wendler, Edward"]
[Result "1/2-1/2"]
[TimeControl "90 min + 30 sec increment from move one"]
[WhiteFideId "12803430"]
[BlackFideId "30956277"]
[WhiteElo "1740"]
[BlackElo "1839"]

1. e4 {[%clk 01:30:36]} c5 {[%clk 00:00:00]} 2. Nf3 {[%clk 01:30:36]} d6 {[%clk
00:00:00]} 3. d4 {[%clk 01:30:36]} cxd4 {[%clk 00:00:00]} 4. Nxd4 {[%clk
01:30:36]} Nf6 {[%clk 00:00:00]} 5. Nc3 {[%clk 01:30:36]} a6 {[%clk 00:00:00]}
6. Bg5 {[%clk 01:30:36]} e6 {[%clk 00:00:00]} 7. f4 {[%clk 01:30:36]} Be7
{[%clk 00:00:00]} 8. Qf3 {[%clk 01:30:36]} Qc7 {[%clk 00:00:00]} 9. O-O-O
{[%clk 01:30:36]} Nbd7 {[%clk 00:00:00]} 10. g4 {[%clk 01:30:36]} b5 {[%clk
00:00:00]} 11. Bxf6 {[%clk 01:30:36]} Nxf6 {[%clk 00:00:00]} 12. g5 {[%clk
01:30:36]} Nd7 {[%clk 00:00:00]} 13. f5 {[%clk 01:30:36]} Bxg5+ {[%clk
00:00:00]} 14. Kb1 {[%clk 01:30:36]} Ne5 {[%clk 00:00:00]} 15. Qh5 {[%clk
01:30:36]} Qe7 {[%clk 00:00:00]} 16. fxe6 {[%clk 01:30:36]} g6 {[%clk
00:00:00]} 17. exf7+ {[%clk 01:30:36]} Kxf7 {[%clk 00:00:00]} 18. Qe2 {[%clk
01:30:36]} Bg4 {[%clk 00:00:00]} 19. Qf2+ {[%clk 01:30:36]} Kg7 {[%clk
00:00:00]} 20. Be2 {[%clk 01:30:36]} Rhf8 {[%clk 00:00:00]} 21. Qg2 {[%clk
01:30:36]} Bxe2 {[%clk 00:00:00]} 22. Qxe2 {[%clk 01:30:36]} Ra7 {[%clk
00:00:00]} 23. Nd5 {[%clk 01:30:36]} Qe8 {[%clk 00:00:00]} 24. h4 {[%clk
01:30:36]} Bf6 {[%clk 00:00:00]} 25. h5 {[%clk 01:30:36]} Kh8 {[%clk 00:00:00]}
26. hxg6 {[%clk 01:30:36]} Nxg6 {[%clk 00:00:00]} 27. Qe3 {[%clk 01:30:36]} Rd7
{[%clk 00:00:00]} 28. Nxf6 {[%clk 01:30:36]} Rxf6 {[%clk 00:00:00]} 29. Qc3
{[%clk 01:30:36]} Ne5 {[%clk 00:00:00]} 30. Nf5 {[%clk 01:30:36]} Qd8 {[%clk
00:00:00]} 31. a3 {[%clk 01:30:36]} Qc7 {[%clk 00:00:00]} 32. Qh3 {[%clk
01:30:36]} Nc4 {[%clk 00:00:00]} 33. Qh4 {[%clk 01:30:36]} Rg6 {[%clk
00:00:00]} 34. Qh5 {[%clk 01:30:36]} Re6 {[%clk 00:00:00]} 35. Qg4 {[%clk
01:30:36]} Re8 {[%clk 00:00:00]} 36. Rhg1 {[%clk 01:30:36]} Qd8 {[%clk
00:00:00]} 37. Rh1 {[%clk 01:30:36]} Qf6 {[%clk 00:00:00]} 38. c3 {[%clk
01:30:36]} Rg8 {[%clk 00:00:00]} 39. Qh3 {[%clk 01:30:36]} Re8 {[%clk
00:00:00]} 40. Ne3 {[%clk 01:30:36]} Rb7 {[%clk 00:00:00]} 41. Nd5 {[%clk
01:30:36]} Qe6 {[%clk 00:00:00]} 42. Qh5 {[%clk 01:30:36]} Qxe4+ {[%clk
00:00:00]} 43. Ka2 {[%clk 01:30:36]} Qe2 {[%clk 00:00:00]} 44. Qh2 {[%clk
01:30:36]} Nxb2 {[%clk 00:00:00]} 45. Rde1 {[%clk 01:30:36]} Qc4+ {[%clk
00:00:00]} 46. Kxb2 {[%clk 01:30:36]} Rxe1 {[%clk 00:00:00]} 47. Rxe1 {[%clk
01:30:36]} Qxd5 {[%clk 00:00:00]} 48. Re8+ {[%clk 01:30:36]} Kg7 {[%clk
00:00:00]} 49. Qg3+ {[%clk 01:30:36]} Kf6 {[%clk 00:00:00]} 50. Qf4+ {[%clk
01:30:36]} Kg6 {[%clk 00:00:00]} 51. Qg4+ {[%clk 01:30:36]} Kf6 {[%clk
00:00:00]} 52. Rf8+ {[%clk 01:30:36]} Rf7 {[%clk 00:00:00]} 53. Qf4+ {[%clk
01:30:36]} Ke7 {[%clk 00:00:00]} 54. Rxf7+ {[%clk 01:30:36]} Qxf7 {[%clk
00:00:00]} 55. Qe4+ {[%clk 01:30:36]} 1/2-1/2

[Event "32nd NATO Chess Championship"]
[Site "Tartu, Estonia"]
[Date "2022.07.01"]
[Round "7.32"]
[White "Csizmadia, Csaba"]
[Black "Papler, Peter"]
[Result "0-1"]
[TimeControl "90 min + 30 sec increment from move one"]
[WhiteFideId "763942"]
[BlackFideId "14609770"]
[WhiteElo "1875"]
[BlackElo "1714"]

1. c4 Nf6 2. g3 d6 3. d4 Nbd7 4. Bg2 c6 5. Nf3 Qc7 6. Nc3 e5 7. O-O Be7 8. b3
O-O 9. Ba3 Rd8 10. Qc2 Nf8 11. h3 Ng6 12. Rac1 {[%clk 01:30:56]} a6 {[%clk
01:30:49]} 13. Rfd1 {[%clk 01:30:56]} Qa5 {[%clk 01:30:49]} 14. Bb2 {[%clk
01:30:56]} h6 {[%clk 01:30:49]} 15. a4 {[%clk 01:30:56]} Bd7 {[%clk 01:30:49]}
16. e4 {[%clk 01:30:56]} Rab8 {[%clk 01:30:49]} 17. Ra1 {[%clk 01:30:56]} exd4
{[%clk 01:30:49]} 18. Nxd4 {[%clk 01:30:56]} Qh5 {[%clk 01:30:49]} 19. Nf5
{[%clk 01:30:56]} Bxf5 {[%clk 01:30:49]} 20. exf5 {[%clk 01:30:56]} Ne5 {[%clk
01:30:49]} 21. g4 {[%clk 01:30:56]} Nfxg4 {[%clk 01:30:49]} 22. hxg4 {[%clk
01:30:56]} Nxg4 {[%clk 01:30:49]} 23. Qe2 {[%clk 01:30:56]} Bh4 {[%clk
01:30:49]} 24. Ne4 {[%clk 01:30:56]} Re8 {[%clk 01:30:49]} 25. Bd4 {[%clk
01:30:56]} d5 {[%clk 01:30:49]} 26. cxd5 {[%clk 01:30:56]} cxd5 {[%clk
01:30:49]} 27. f3 {[%clk 01:30:56]} Nh2 {[%clk 01:30:49]} 28. Kxh2 {[%clk
01:30:56]} dxe4 {[%clk 01:30:49]} 29. Kg1 {[%clk 01:30:56]} exf3 {[%clk
01:30:49]} 30. Qxf3 {[%clk 01:30:56]} Qg5 {[%clk 01:30:49]} 31. Bf2 {[%clk
01:30:56]} Bxf2+ {[%clk 01:30:49]} 32. Kxf2 {[%clk 01:30:56]} Re5 {[%clk
01:30:49]} 33. Rd5 {[%clk 01:30:56]} Rbe8 {[%clk 01:30:49]} 34. Rxe5 {[%clk
01:30:56]} Rxe5 {[%clk 01:30:49]} 35. Bh3 {[%clk 01:30:56]} Qd2+ {[%clk
01:30:49]} 36. Kf1 {[%clk 01:30:56]} Re3 {[%clk 01:30:49]} 37. Qf2 {[%clk
01:30:56]} Qd3+ {[%clk 01:30:49]} 0-1

[Event "32nd NATO Chess Championship"]
[Site "Tartu, Estonia"]
[Date "2022.07.01"]
[Round "7.35"]
[White "Muld, Tarmo"]
[Black "O`byrne, Daniel"]
[Result "1/2-1/2"]
[TimeControl "90 min + 30 sec increment from move one"]
[WhiteFideId "4519469"]
[BlackFideId "440825"]
[WhiteElo "1783"]
[BlackElo "1664"]

1. d4 {[%clk 01:30:46]} {[%emt 00:00:13]} e6 {[%clk 01:30:40]} {[%emt
00:00:20]} 2. c4 {[%clk 01:30:59]} {[%emt 00:00:18]} d5 {[%clk 01:31:00]}
{[%emt 00:00:10]} 3. Nc3 {[%clk 01:30:36]} {[%emt 00:00:52]} g6 {[%clk
01:30:23]} {[%emt 00:01:07]} 4. Nf3 {[%clk 01:30:40]} {[%emt 00:00:27]} Bg7
{[%clk 01:30:46]} {[%emt 00:00:07]} 5. Bg5 {[%clk 01:29:05]} {[%emt 00:02:05]}
Nf6 {[%clk 01:29:15]} {[%emt 00:02:01]} 6. e3 {[%clk 01:29:21]} {[%emt
00:00:14]} O-O {[%clk 01:29:12]} {[%emt 00:00:33]} 7. Bd3 {[%clk 01:29:05]}
{[%emt 00:00:46]} b6 {[%clk 01:27:01]} {[%emt 00:02:41]} 8. cxd5 {[%clk
01:27:33]} {[%emt 00:02:02]} exd5 {[%clk 01:27:15]} {[%emt 00:00:16]} 9. O-O
{[%clk 01:27:26]} {[%emt 00:00:37]} h6 {[%clk 01:22:10]} {[%emt 00:05:36]} 10.
Bh4 {[%clk 01:26:54]} {[%emt 00:01:01]} g5 {[%clk 01:22:28]} {[%emt 00:00:12]}
11. Bg3 {[%clk 01:27:13]} {[%emt 00:00:11]} Nh5 {[%clk 01:22:43]} {[%emt
00:00:15]} 12. Rc1 {[%clk 01:26:27]} {[%emt 00:01:15]} Nxg3 {[%clk 01:23:03]}
{[%emt 00:00:10]} 13. hxg3 {[%clk 01:26:31]} {[%emt 00:00:26]} Ba6 {[%clk
01:21:37]} {[%emt 00:01:56]} 14. a3 {[%clk 01:26:11]} {[%emt 00:00:51]} Bxd3
{[%clk 01:21:30]} {[%emt 00:00:37]} 15. Qxd3 {[%clk 01:26:29]} {[%emt
00:00:11]} Qd7 {[%clk 01:21:23]} {[%emt 00:00:37]} 16. Rfd1 {[%clk 01:25:42]}
{[%emt 00:01:18]} Nc6 {[%clk 01:21:27]} {[%emt 00:00:26]} 17. b4 {[%clk
01:24:16]} {[%emt 00:01:55]} Ne7 {[%clk 01:16:47]} {[%emt 00:05:10]} 18. Qc2
{[%clk 01:20:27]} {[%emt 00:04:19]} Rac8 {[%clk 01:13:54]} {[%emt 00:03:21]}
1/2-1/2

[Event "32nd NATO Chess Championship"]
[Site "Tartu, Estonia"]
[Date "2022.07.01"]
[Round "7.37"]
[White "Ross, David C"]
[Black "Allmann, Lauri"]
[Result "1/2-1/2"]
[TimeControl "90 min + 30 sec increment from move one"]
[WhiteFideId "417572"]
[BlackFideId "2604868"]
[WhiteElo "1677"]
[BlackElo "1804"]

1. e4 {[%clk 01:30:55]} {[%emt 00:00:05]} d6 {[%clk 01:30:53]} {[%emt
00:00:07]} 2. d4 {[%clk 01:31:00]} {[%emt 00:00:24]} Nf6 {[%clk 01:31:17]}
{[%emt 00:00:07]} 3. Bd3 {[%clk 01:29:47]} {[%emt 00:01:43]} g6 {[%clk
01:31:29]} {[%emt 00:00:17]} 4. c3 {[%clk 01:29:02]} {[%emt 00:01:14]} Bg7
{[%clk 01:30:26]} {[%emt 00:01:34]} 5. Bg5 {[%clk 01:27:05]} {[%emt 00:02:26]}
c5 {[%clk 01:29:42]} {[%emt 00:01:15]} 6. Ne2 {[%clk 01:24:03]} {[%emt
00:03:32]} Nc6 {[%clk 01:27:32]} {[%emt 00:02:40]} 7. Na3 {[%clk 01:14:32]}
{[%emt 00:10:01]} cxd4 {[%clk 01:25:12]} {[%emt 00:02:50]} 8. cxd4 {[%clk
01:13:28]} {[%emt 00:01:31]} O-O {[%clk 01:21:33]} {[%emt 00:04:11]} 9. Qd2
{[%clk 01:03:56]} {[%emt 00:10:03]} Bd7 {[%clk 01:15:35]} {[%emt 00:06:28]} 10.
Bh6 {[%clk 01:00:07]} {[%emt 00:04:19]} Bxh6 {[%clk 01:13:29]} {[%emt
00:02:36]} 11. Qxh6 {[%clk 01:00:05]} {[%emt 00:00:32]} Qa5+ {[%clk 01:13:28]}
{[%emt 00:00:31]} 1/2-1/2

[Event "32nd NATO Chess Championship"]
[Site "Tartu, Estonia"]
[Date "2022.07.01"]
[Round "7.38"]
[White "Stuhr, Finn"]
[Black "Ivanovs, Aleksejs"]
[Result "1/2-1/2"]
[TimeControl "90 min + 30 sec increment from move one"]
[WhiteFideId "1400789"]
[BlackFideId "11626283"]
[WhiteElo "1686"]
[BlackElo "1784"]

1. e4 {[%clk 01:30:56]} {[%emt 00:00:04]} c5 {[%clk 01:30:45]} {[%emt
00:00:12]} 2. Bc4 {[%clk 01:31:23]} {[%emt 00:00:07]} Nc6 {[%clk 01:30:56]}
{[%emt 00:00:18]} 3. Nf3 {[%clk 01:31:36]} {[%emt 00:00:15]} g6 {[%clk
01:30:35]} {[%emt 00:00:53]} 4. O-O {[%clk 01:31:35]} {[%emt 00:00:31]} Bg7
{[%clk 01:30:43]} {[%emt 00:00:22]} 5. c3 {[%clk 01:31:54]} {[%emt 00:00:11]}
e6 {[%clk 01:29:54]} {[%emt 00:01:19]} 6. Re1 {[%clk 01:32:18]} {[%emt
00:00:05]} Nge7 {[%clk 01:29:05]} {[%emt 00:01:20]} 7. d3 {[%clk 01:29:53]}
{[%emt 00:02:55]} O-O {[%clk 01:28:54]} {[%emt 00:00:41]} 8. Bg5 {[%clk
01:28:42]} {[%emt 00:01:41]} d5 {[%clk 01:25:07]} {[%emt 00:04:18]} 9. exd5
{[%clk 01:28:01]} {[%emt 00:01:11]} exd5 {[%clk 01:25:14]} {[%emt 00:00:21]} 10.
Bb3 {[%clk 01:24:08]} {[%emt 00:04:23]} h6 {[%clk 01:18:18]} {[%emt 00:07:27]}
11. Bh4 {[%clk 01:23:39]} {[%emt 00:00:59]} Qd7 {[%clk 01:05:59]} {[%emt
00:12:49]} 12. Bg3 {[%clk 01:20:10]} {[%emt 00:03:59]} Nf5 {[%clk 00:57:53]}
{[%emt 00:08:21]} 13. Ne5 {[%clk 01:16:33]} {[%emt 00:04:22]} Nxe5 {[%clk
00:51:52]} {[%emt 00:06:20]} 14. Bxe5 {[%clk 01:17:03]} Re8 {[%clk 00:49:53]}
{[%emt 00:02:41]} 15. Bxg7 {[%clk 01:17:00]} {[%emt 00:00:33]} Nxg7 {[%clk
00:47:43]} {[%emt 00:02:33]} 16. Nd2 {[%clk 01:17:22]} {[%emt 00:00:14]} b6
{[%clk 00:47:15]} {[%emt 00:00:58]} 17. Rxe8+ {[%clk 01:14:22]} {[%emt
00:03:30]} Nxe8 {[%clk 00:47:18]} {[%emt 00:00:28]} 18. Nf3 {[%clk 01:10:50]}
{[%emt 00:04:01]} Bb7 {[%clk 00:46:03]} {[%emt 00:01:45]} 19. Ne5 {[%clk
01:10:48]} {[%emt 00:00:32]} Qf5 {[%clk 00:45:20]} {[%emt 00:01:11]} 1/2-1/2

[Event "32nd NATO Chess Championship"]
[Site "Tartu, Estonia"]
[Date "2022.07.01"]
[Round "7.39"]
[White "Moulton, Richard"]
[Black "Windey, Luc"]
[Result "0-1"]
[TimeControl "90 min + 30 sec increment from move one"]
[WhiteFideId "2622718"]
[BlackFideId "249220"]
[WhiteElo "1766"]
[BlackElo "1624"]

1. e4 {[%clk 01:30:57]} {[%emt 00:00:02]} c5 {[%clk 01:30:56]} {[%emt
00:00:05]} 2. Nf3 {[%clk 01:31:20]} {[%emt 00:00:06]} Nc6 {[%clk 01:31:19]}
{[%emt 00:00:08]} 3. Bb5 {[%clk 01:31:43]} {[%emt 00:00:07]} a6 {[%clk
01:31:10]} {[%emt 00:00:40]} 4. Bxc6 {[%clk 01:31:09]} {[%emt 00:01:03]} bxc6
{[%clk 01:29:38]} {[%emt 00:00:35]} 5. O-O {[%clk 01:30:15]} {[%emt 00:02:51]}
d5 {[%clk 01:29:32]} {[%emt 00:00:35]} 6. d3 {[%clk 01:24:46]} {[%emt
00:05:59]} Bg4 {[%clk 01:29:28]} {[%emt 00:00:35]} 7. h3 {[%clk 01:24:48]}
{[%emt 00:00:28]} Bh5 {[%clk 01:29:50]} {[%emt 00:00:08]} 8. Bf4 {[%clk
01:19:44]} {[%emt 00:05:33]} e6 {[%clk 01:28:58]} {[%emt 00:01:23]} 9. Nbd2
{[%clk 01:16:49]} {[%emt 00:03:24]} Bd6 {[%clk 01:28:24]} {[%emt 00:01:04]} 10.
Bxd6 {[%clk 01:10:23]} {[%emt 00:06:56]} Qxd6 {[%clk 01:28:41]} {[%emt
00:00:14]} 11. c3 {[%clk 01:10:42]} {[%emt 00:00:11]} Ne7 {[%clk 01:28:15]}
{[%emt 00:00:56]} 12. Qc2 {[%clk 01:06:16]} {[%emt 00:04:56]} O-O {[%clk
01:25:18]} {[%emt 00:03:26]} 13. e5 {[%clk 01:00:09]} {[%emt 00:06:37]} Qc7
{[%clk 01:23:14]} {[%emt 00:02:35]} 14. d4 {[%clk 00:59:20]} {[%emt 00:01:18]}
c4 {[%clk 01:15:14]} {[%emt 00:08:31]} 15. Nh4 {[%clk 00:52:38]} {[%emt
00:07:10]} Be2 {[%clk 01:13:11]} {[%emt 00:02:34]} 16. Rfe1 {[%clk 00:51:33]}
{[%emt 00:01:36]} Bd3 {[%clk 01:13:36]} {[%emt 00:00:05]} 17. Qa4 {[%clk
00:50:20]} {[%emt 00:01:43]} c5 {[%clk 01:10:22]} {[%emt 00:03:44]} 18. Rac1
{[%clk 00:42:14]} {[%emt 00:08:35]} cxd4 {[%clk 01:09:25]} {[%emt 00:01:28]} 19.
cxd4 {[%clk 00:42:22]} {[%emt 00:00:21]} Qb6 {[%clk 01:09:51]} {[%emt
00:00:04]} 20. b3 {[%clk 00:39:51]} {[%emt 00:03:02]} Qxd4 {[%clk 01:04:39]}
{[%emt 00:05:42]} 21. Nhf3 {[%clk 00:39:51]} {[%emt 00:00:29]} Qb2 {[%clk
01:04:48]} {[%emt 00:00:20]} 22. bxc4 {[%clk 00:38:58]} {[%emt 00:01:25]} dxc4
{[%clk 01:04:07]} {[%emt 00:01:11]} 23. Nxc4 {[%clk 00:38:56]} {[%emt
00:00:32]} Qb5 {[%clk 01:03:48]} {[%emt 00:00:48]} 24. Qxb5 {[%clk 00:33:03]}
{[%emt 00:06:23]} axb5 {[%clk 01:03:47]} {[%emt 00:00:31]} 25. Nd6 {[%clk
00:32:05]} {[%emt 00:01:28]} Rxa2 {[%clk 01:00:46]} {[%emt 00:03:32]} 26. Re3
{[%clk 00:31:24]} {[%emt 00:01:10]} Bc4 {[%clk 00:52:56]} {[%emt 00:08:21]} 27.
Nxc4 {[%clk 00:31:18]} {[%emt 00:00:36]} bxc4 {[%clk 00:53:18]} {[%emt
00:00:08]} 28. Rxc4 {[%clk 00:31:29]} {[%emt 00:00:18]} Rb8 {[%clk 00:53:44]}
{[%emt 00:00:04]} 29. Rc7 {[%clk 00:23:39]} {[%emt 00:08:20]} Nd5 {[%clk
00:53:38]} {[%emt 00:00:36]} 30. Rec3 {[%clk 00:22:20]} {[%emt 00:01:49]} Nxc3
{[%clk 00:52:39]} {[%emt 00:01:29]} 31. Rxc3 {[%clk 00:22:44]} {[%emt
00:00:07]} h6 {[%clk 00:51:59]} {[%emt 00:01:09]} 32. Rc1 {[%clk 00:23:03]}
{[%emt 00:00:12]} Rbb2 {[%clk 00:51:11]} {[%emt 00:01:18]} 33. Rf1 {[%clk
00:23:15]} {[%emt 00:00:18]} Re2 {[%clk 00:51:11]} {[%emt 00:00:30]} 34. g4
{[%clk 00:21:10]} {[%emt 00:02:34]} Kh7 {[%clk 00:50:25]} {[%emt 00:01:16]} 35.
Kg2 {[%clk 00:20:11]} {[%emt 00:01:29]} g5 {[%clk 00:47:26]} {[%emt 00:03:30]}
36. Kg3 {[%clk 00:19:21]} {[%emt 00:01:19]} Ra3 {[%clk 00:46:45]} {[%emt
00:01:11]} 37. Kg2 {[%clk 00:19:04]} {[%emt 00:00:47]} Rea2 {[%clk 00:44:43]}
{[%emt 00:02:32]} 38. Nd4 {[%clk 00:16:30]} {[%emt 00:03:04]} Ra1 {[%clk
00:43:44]} {[%emt 00:01:29]} 39. Rxa1 {[%clk 00:16:43]} {[%emt 00:00:17]} Rxa1
{[%clk 00:44:07]} {[%emt 00:00:07]} 40. Kg3 {[%clk 00:16:15]} {[%emt 00:00:58]}
Kg6 {[%clk 00:43:29]} {[%emt 00:01:07]} 41. Nf3 {[%clk 00:15:27]} {[%emt
00:01:17]} Ra3 {[%clk 00:42:32]} {[%emt 00:01:30]} 42. Kg2 {[%clk 00:14:25]}
{[%emt 00:01:32]} h5 {[%clk 00:41:30]} {[%emt 00:01:31]} 43. Kg3 {[%clk
00:14:24]} {[%emt 00:00:31]} Ra4 {[%clk 00:40:46]} {[%emt 00:01:14]} 44. gxh5+
{[%clk 00:12:05]} {[%emt 00:02:49]} Kxh5 {[%clk 00:38:55]} {[%emt 00:02:21]} 45.
Nh2 {[%clk 00:12:22]} {[%emt 00:00:13]} Ra3+ {[%clk 00:36:21]} {[%emt
00:03:04]} 46. f3 {[%clk 00:11:53]} {[%emt 00:01:00]} Re3 {[%clk 00:34:25]}
{[%emt 00:02:25]} 47. Ng4 {[%clk 00:11:39]} {[%emt 00:00:45]} Re2 {[%clk
00:34:42]} {[%emt 00:00:12]} 48. Nf6+ {[%clk 00:11:28]} {[%emt 00:00:42]} Kg6
{[%clk 00:34:42]} {[%emt 00:00:29]} 49. Ng4 {[%clk 00:11:38]} {[%emt 00:00:20]}
Ra2 {[%clk 00:33:46]} {[%emt 00:01:25]} 50. h4 {[%clk 00:11:00]} {[%emt
00:01:09]} gxh4+ {[%clk 00:27:39]} {[%emt 00:06:37]} 51. Kxh4 {[%clk 00:11:18]}
{[%emt 00:00:12]} Rg2 {[%clk 00:27:56]} {[%emt 00:00:11]} 52. Kh3 {[%clk
00:09:21]} {[%emt 00:02:29]} Rg1 {[%clk 00:28:00]} {[%emt 00:00:27]} 53. Kh2
{[%clk 00:09:03]} {[%emt 00:00:48]} Ra1 {[%clk 00:25:46]} {[%emt 00:02:43]} 54.
Kg3 {[%clk 00:09:11]} {[%emt 00:00:22]} Kg5 {[%clk 00:25:12]} {[%emt 00:01:04]}
55. f4+ {[%clk 00:08:18]} {[%emt 00:01:24]} Kf5 {[%clk 00:21:37]} {[%emt
00:04:03]} 56. Kf3 {[%clk 00:08:04]} {[%emt 00:00:45]} Rf1+ {[%clk 00:21:39]}
{[%emt 00:00:28]} 0-1

[Event "32nd NATO Chess Championship"]
[Site "Tartu, Estonia"]
[Date "2022.07.01"]
[Round "7.42"]
[White "Boudry, Rik"]
[Black "Koopmeiners, Karl"]
[Result "1/2-1/2"]
[TimeControl "90 min + 30 sec increment from move one"]
[WhiteFideId "237540"]
[BlackFideId "24624373"]
[WhiteElo "1468"]
[BlackElo "1946"]

1. e4 {[%clk 01:30:57]} {[%emt 00:00:02]} c6 {[%clk 01:30:19]} {[%emt
00:00:41]} 2. d4 {[%clk 01:30:27]} {[%emt 00:01:00]} d5 {[%clk 01:30:43]}
{[%emt 00:00:05]} 3. exd5 {[%clk 01:29:44]} {[%emt 00:01:14]} cxd5 {[%clk
01:30:57]} {[%emt 00:00:17]} 4. c3 {[%clk 01:29:34]} {[%emt 00:00:40]} Nc6
{[%clk 01:30:43]} {[%emt 00:00:43]} 5. Bf4 {[%clk 01:29:40]} {[%emt 00:00:24]}
Nf6 {[%clk 01:28:47]} {[%emt 00:02:26]} 6. Bd3 {[%clk 01:27:43]} {[%emt
00:02:27]} g6 {[%clk 01:28:59]} {[%emt 00:00:18]} 7. Nf3 {[%clk 01:27:48]}
{[%emt 00:00:23]} Bg7 {[%clk 01:28:49]} {[%emt 00:00:42]} 8. O-O {[%clk
01:27:43]} {[%emt 00:00:35]} O-O {[%clk 01:20:17]} {[%emt 00:09:02]} 9. Nbd2
{[%clk 01:27:17]} {[%emt 00:00:57]} Bf5 {[%clk 01:20:10]} {[%emt 00:00:36]} 10.
Bxf5 {[%clk 01:24:37]} {[%emt 00:03:10]} gxf5 {[%clk 01:20:37]} {[%emt
00:00:03]} 11. Ne5 {[%clk 01:15:36]} {[%emt 00:09:31]} Nxe5 {[%clk 01:18:41]}
{[%emt 00:02:26]} 12. Bxe5 {[%clk 01:14:31]} {[%emt 00:01:34]} e6 {[%clk
01:16:57]} {[%emt 00:02:15]} 13. Nf3 {[%clk 01:08:49]} {[%emt 00:06:10]}
1/2-1/2